Cogmind - Beta 15 @@@ ROGUE MODE // 2025.05.29 @ 21:48:28 Player: the Result: Destroyed by Lightning with EMDS Performance ------------- Evolutions (4) 2000 Regions Visited (14) 2800 Robots Destroyed (260) 1300 Value Destroyed (9935) 9935 Prototype IDs (25) 500 Alien Tech Used (0) 0 Bonus (2820) 2820 TOTAL SCORE: 19355 Bonus ------- High Alert Combat Kills 613 Follower Combat Kills 1400 Network Hubs Disabled 200 Met Data Miner 300 Met R17 at Cetus 500 Friendly Fire -193 Cogmind --------- Core Integrity 0/850 Matter 240/300 Energy 94/100 System Corruption 43% Temperature Cool (0) Movement Treading (160) Location -6/Hub_04(d) Parts ------- > --- POWER (1) -------- (None) > --- PROPULSION (4) --- Centrium Heavy Treads > --- UTILITY (7) ------ Large Storage Unit Improved Sensor Array (fused) Advanced Signal Interpreter > --- WEAPON (3) ------- Dispersion Rifle > --- INVENTORY (15) --- Armored Treads Armored Treads Improved Medium Treads Improved Cooling System Active Sensor Suite Peak State ------------ > --- POWER ------------ Angular Momentum Engine > --- PROPULSION ------- Centrium Heavy Treads Centrium Heavy Treads > --- UTILITY ---------- Advanced Thermal Generator Improved Cooling System Large Storage Unit Improved Sensor Array Advanced Signal Interpreter Centrium Medium Armor Plating Centrium Medium Armor Plating > --- WEAPON ----------- Thermic Laser Dispersion Rifle Dispersion Rifle > --- INVENTORY -------- Armored Treads Armored Treads Improved Medium Treads Improved Cooling System Active Sensor Suite Heavy Plasma Cannon Long-range Missile Launcher [Rating: 103] Favorites ----------- Power Improved Deuterium Engine Engine Improved Deuterium Engine Power Core Light Nuclear Core Reactor Quantum Reactor Propulsion Advanced Treads Treads Advanced Treads Leg Flexi-carbon Leg Wheel Wheel Utility Large Storage Unit Device Improved Cooling System Storage Large Storage Unit Processor Advanced Targeting Computer Hackware Hacking Suite Protection Reflective Plating Weapon Gatling Laser Energy Gun Gatling Laser Energy Cannon Heavy Plasma Cannon Ballistic Gun KE Penetrator Ballistic Cannon Improved Light Cannon Launcher Rocket Launcher Special Weapon Remote Datajack Build | -11 -10 -9 -9 -8 -7 -7 -7 -7 -6 -6 -6 -6 -6 -6 ------- Run | Yrd Mat Mat Min Mat Fac Low Low Dat Pro Fac Ext Cet Arc Hub Slots Evolved 8 | . . 2 . 2 2 . . . . 2 . . . . Power . | . . . . . . . . . . . . . . . Propulsion 2 | . . . . 1 . . . . . 1 . . . . Utility 5 | . . 2 . . 2 . . . . 1 . . . . Weapon 1 | . . . . 1 . . . . . . . . . . Parts Attached 160 | 7 12 29 4 13 17 5 4 . 1 32 16 8 3 9 Power 22 | 1 2 6 1 1 1 . 1 . . 5 1 2 . 1 Engine 18 | 1 2 6 . 1 1 . 1 . . 4 1 . . 1 Core 2 | . . . 1 . . . . . . 1 . . . . Reactor 2 | . . . . . . . . . . . . 2 . . Propulsion 41 | 2 3 7 . 5 3 . . . . 10 6 2 2 1 Treads 29 | . . 5 . 5 3 . . . . 5 6 2 2 1 Leg 7 | . . 2 . . . . . . . 5 . . . . Wheel 5 | 2 3 . . . . . . . . . . . . . Hover . | . . . . . . . . . . . . . . . Flight . | . . . . . . . . . . . . . . . Utility 44 | 2 4 4 2 2 6 1 3 . 1 11 1 4 1 2 Device 25 | 1 3 1 2 . 4 . 2 . 1 6 . 3 1 1 Storage 3 | 1 1 1 . . . . . . . . . . . . Processor 9 | . . 1 . 1 1 . . . . 5 1 . . . Hackware 1 | . . . . . 1 . . . . . . . . . Protection 6 | . . 1 . 1 . 1 1 . . . . 1 . 1 Artifact . | . . . . . . . . . . . . . . . Weapon 53 | 2 3 12 1 5 7 4 . . . 6 8 . . 5 Energy Gun 30 | 2 1 6 . 3 4 3 . . . 3 5 . . 3 Energy Cannon 14 | . 2 3 . 1 1 . . . . 3 3 . . 1 Ballistic Gun 2 | . . . . 1 . 1 . . . . . . . . Ballistic Cannon 3 | . . 2 . . 1 . . . . . . . . . Launcher 3 | . . 1 1 . . . . . . . . . . 1 Special Weapon 1 | . . . . . 1 . . . . . . . . . Impact Weapon . | . . . . . . . . . . . . . . . Slashing Weapon . | . . . . . . . . . . . . . . . Piercing Weapon . | . . . . . . . . . . . . . . . Special Melee Weapon . | . . . . . . . . . . . . . . . Unidentified Prototypes 8 | . 1 2 . 2 1 . . . . . . 2 . . Corrupted Parts 3 | . . . . . . . . . . . . 1 2 . System Corruption 20 | . . . . . . . . . . . . 4 16 . Parts Lost 49 | . . 8 1 . 1 3 1 . . 14 . . . 21 Power 5 | . . 2 . . . . . . . 1 . . . 2 Propulsion 12 | . . 2 . . . 1 . . . 6 . . . 3 Utility 16 | . . 1 1 . . . 1 . . 4 . . . 9 Weapon 16 | . . 3 . . 1 2 . . . 3 . . . 7 Highest Loss Streak 10 | . . 6 1 . 1 2 1 . . 7 . . . 10 To Critical Strikes . | . . . . . . . . . . . . . . . Average Backups 14 | 2 10 14 14 14 14 14 14 15 15 14 15 13 13 11 Power 1 | . 1 . . 1 2 2 2 2 2 2 2 1 1 1 Propulsion 2 | 1 3 4 4 3 2 2 1 1 1 2 2 2 2 2 Utility 4 | . 2 4 3 4 4 3 3 4 4 2 5 5 6 5 Weapon 5 | . 2 5 6 5 5 6 8 8 8 6 4 4 4 3 Tool/Special . | . . . . . . . . . . . . . . . Unused Backups 45 | . 10 9 . 4 4 . . . . 4 6 3 . 5 Power 6 | . 1 1 . 1 . . . . . 1 . 1 . 1 Propulsion 15 | . 3 3 . . . . . . . 1 4 2 . 2 Utility 9 | . . 2 . . 4 . . . . . 1 . . 2 Weapon 15 | . 6 3 . 3 . . . . . 2 1 . . . Tool/Special . | . . . . . . . . . . . . . . . Average Slot Usage (%) 97 | . 100 98 99 99 99 96 97 100 100 97 99 87 86 84 Engine 6 | . 14 10 . 6 7 7 7 7 7 5 4 . . . Core 1 | . . . 10 2 . . . . . . 1 . . . Treads 20 | . . 20 22 26 23 20 23 23 23 23 26 14 13 12 Wheel 1 | . 28 . . . . . . . . . . . . . Device 16 | . 14 19 11 9 17 16 15 15 20 18 20 19 20 19 Storage 8 | . 14 11 11 9 7 7 7 7 7 6 6 6 6 6 Processor 14 | . . 11 11 9 14 15 15 15 15 19 20 20 20 17 Protection 3 | . . 2 11 9 4 5 4 7 2 . . . . 1 Energy Gun 17 | . 6 19 17 24 22 21 23 23 23 12 12 6 6 13 Energy Cannon 4 | . 21 1 . 2 . . . . . 5 6 12 13 5 Peak Build Rating 103 | 7 13 22 23 37 49 50 50 50 51 71 70 99 99 103 Average Rating 47 | 5 10 20 22 33 46 48 48 50 50 62 66 93 98 97 On Entrance 45 | . 7 13 21 22 37 49 50 50 50 51 66 70 99 98 Naked Turns . | . . . . . . . . . . . . . . . Heaviest Build 80 | 15 37 40 39 45 50 53 50 47 47 64 58 80 80 79 Greatest Support 160 | 20 20 46 46 69 72 72 72 72 72 106 108 160 160 160 Greatest Overweight (x) 3 | 3 1 2 . . . 1 . . . 2 . . . . Average Overweight (x) . | . . . . . . . . . . . . . . . Largest Inventory Capacity 15 | 8 15 15 15 15 15 15 15 15 15 15 15 15 15 15 Average Capacity 14 | 7 11 15 15 15 15 15 15 15 15 15 15 15 15 15 Most Carried 15 | 8 15 15 15 15 15 15 15 15 15 15 15 15 15 15 Average Carried 14 | 3 10 14 14 14 14 14 14 15 15 14 14 14 14 13 Final Capacity 15 | 8 15 15 15 15 15 15 15 15 15 15 15 15 15 15 Final Carried 15 | 7 15 15 14 15 15 15 15 15 15 15 15 15 15 7 Class Distribution -------------------- 40% | Skirmisher 29% | Mutant 10% | Gunner 6% | Scavenger-Skirmisher 4% | Derelict-Skirmisher 3% | Scavenger-Tank Dominant Class ---------------- Mutant | -10/Materials Mutant | -9/Materials Mutant | -9/Mines Gunner | -8/Materials Skirmisher | -7/Factory Skirmisher | -7/Lower Caves Skirmisher | -7/Lower Caves Derelict-Skirmisher | -7/Data Miner Derelict-Skirmisher | -6/Proximity Caves Skirmisher | -6/Factory Skirmisher | -6/Extension Scavenger-Skirmisher | -6/Cetus Scavenger-Skirmisher | -6/Archives Scavenger-Tank | -6/Hub_04(d) Resources | -11 -10 -9 -9 -8 -7 -7 -7 -7 -6 -6 -6 -6 -6 -6 ----------- Run | Yrd Mat Mat Min Mat Fac Low Low Dat Pro Fac Ext Cet Arc Hub Matter Collected 3697 | 270 171 460 139 194 360 112 60 . . 601 825 100 25 380 Remotely . | . . . . . . . . . . . . . . . Salvage Created 12507 | 145 649 1831 360 603 1027 827 143 . 43 3169 1326 556 315 1513 Parts 486 | 13 40 82 16 33 41 35 5 . 2 81 44 17 8 69 Haulers Intercepted 19 | . 2 4 . 2 1 . . . . 5 3 . . 2 Recyclers Shooed 8 | . . 1 2 1 . . . . . 4 . . . . Parts Field Recycled . | . . . . . . . . . . . . . . . Retrieved Matter . | . . . . . . . . . . . . . . . Parts Self-Destructed 43 | . . . . . . 34 7 . 2 . . . . . Prevented . | . . . . . . . . . . . . . . . Kills | -11 -10 -9 -9 -8 -7 -7 -7 -7 -6 -6 -6 -6 -6 -6 ------- Run | Yrd Mat Mat Min Mat Fac Low Low Dat Pro Fac Ext Cet Arc Hub Combat Hostiles Destroyed 201 | . 12 32 9 11 19 24 5 . 1 39 13 8 4 24 Guns 136 | . 3 25 7 9 16 23 5 . 1 25 4 3 . 15 Cannons 40 | . 7 7 . 2 . . . . . 4 6 4 3 7 AOE 6 | . 1 . 1 . . . . . . 4 . . . . Classes Destroyed 17 | 2 7 2 . 1 2 . . . . . 1 . . 2 Worker 8 | . 1 . . . 2 . . . . 4 1 . . . Builder 5 | . 1 . . . 1 . . . . 1 2 . . . Tunneler 6 | 4 . . 1 1 . . . . . . . . . . Hauler 19 | . 2 4 . 2 1 . . . . 5 3 . . 2 Recycler 8 | 1 . 3 1 . . . . . . 2 1 . . . Operator 4 | . 1 1 . . 1 . . . . . 1 . . . Watcher 8 | . 2 3 . . 1 . . . . . . 1 . 1 Swarmer 42 | . 3 7 4 3 . 15 3 . . 3 . . . 4 Grunt 84 | . 9 14 5 2 7 2 . . . 27 6 4 . 8 Brawler 12 | . . . . . 2 5 . . . 4 1 . . . Duelist 6 | . . 2 . . 2 . . . . . 2 . . . Sentry 28 | . . 9 . 5 2 2 . . . 2 2 . 4 2 Specialist 4 | . . . . . . . . . . . . . . 4 Hunter 5 | . . . . 1 . . 1 . . . . 1 . 2 Programmer 14 | . . . . . 6 . 1 . 1 4 . . . 2 Heavy 1 | . . . . . . . . . . . . . . 1 Behemoth 3 | . . . . . . . . . . . 2 . . 1 Cetus Guard 3 | . . . . . . . . . . . . 3 . . Best Kill Streak 8 | 5 4 7 4 4 5 7 3 . 1 8 6 3 1 5 Combat Bots Only 7 | . 3 7 4 4 5 7 3 . 1 5 4 3 1 5 Max Kills in Single Turn 8 | 1 1 2 1 1 2 2 1 . 1 8 2 1 1 2 Gunslinging 1 | . . 1 . . 1 1 . . . . . . . 1 Exploded 4 | . 1 . 1 . . . . . . 4 . . . . Melee . | . . . . . . . . . . . . . . . Uniques/NPCs Destroyed . | . . . . . . . . . . . . . . . Combat | -11 -10 -9 -9 -8 -7 -7 -7 -7 -6 -6 -6 -6 -6 -6 -------- Run | Yrd Mat Mat Min Mat Fac Low Low Dat Pro Fac Ext Cet Arc Hub Hostile Shots Fired 1107 | . 39 155 34 24 69 106 10 . . 289 110 46 15 210 Missed 339 | . 11 44 8 9 31 35 3 . . 98 44 13 5 38 Hits 768 | . 28 111 26 15 38 71 7 . . 191 66 33 10 172 Melee 4 | . . 2 . . . 1 . . . 1 . . . . Projectile 764 | . 28 109 26 15 38 70 7 . . 190 66 33 10 172 AOE 1 | . . . . . . . . . . . . . . 1 Critical Strikes 33 | . . 8 . . 1 2 . . 1 5 1 2 1 12 Part Disruptions 2 | . . . . . . . . . . . . . . 2 Damage Taken 12381 | . 315 1492 281 175 449 1059 107 . 15 2970 576 674 236 4032 Core 1291 | . 22 216 34 . 62 90 14 . . 346 70 60 38 339 Absorbed by Shields 456 | . . . . . 15 . . . . . 250 191 . . Reduced by Siege Mode 215 | . . . . . . . . . . . . . 26 189 Ignored by Resistances 277 | . . . . 4 15 . . . . 258 . . . . Regen/Repaired (Parts) 963 | . . 399 . 213 . . . . . 351 . . . . Core Remaining (%) 80 | 100 91 . 37 100 . . . . 76 . . . . . Volleys Fired 619 | 8 56 111 26 24 48 31 7 . 1 145 58 25 11 68 Largest 3 | 2 2 2 2 3 3 3 3 . 3 3 3 3 3 3 Hottest 315 | 80 136 136 112 180 240 240 210 . 210 315 251 261 261 263 Shots Fired 1522 | 16 112 212 52 70 133 77 19 . 3 373 160 76 33 186 Gun 1080 | 16 32 150 50 54 127 77 19 . 3 260 104 25 12 151 Cannon 429 | . 80 62 . 16 . . . . . 113 56 51 21 30 Launcher 7 | . . . 2 . . . . . . . . . . 5 Special 6 | . . . . . 6 . . . . . . . . . Kinetic . | . . . . . . . . . . . . . . . Thermal 1447 | . 80 198 50 70 127 77 19 . 3 373 160 76 33 181 Explosive 7 | . . . 2 . . . . . . . . . . 5 Electromagnetic 62 | 16 32 14 . . . . . . . . . . . . Robot Hit Streak 33 | 3 7 18 11 11 20 13 6 . 6 31 33 16 25 30 Robot Miss Streak 5 | 3 4 3 2 2 3 3 1 . 1 4 4 3 2 5 Penetration Max . | . . . . . . . . . . . . . . . Secondary Targets 23 | . . 4 1 . 4 8 1 . . 2 . . . 3 Max Gunslinging Chain 1 | . . 1 1 . 1 1 1 . . 1 . . . 1 Shots Hit Robots 1086 | 7 65 152 34 45 106 68 16 . 3 259 124 54 24 129 Core Hits 502 | 6 20 56 12 19 70 60 12 . 3 113 51 18 10 52 Critical Kills 4 | . . . . . . . . . . . . 1 1 2 Critical Parts Destroyed . | . . . . . . . . . . . . . . . Critical Strikes 53 | 1 . 7 2 5 2 . . . . 17 5 3 3 8 Burn 48 | . . 7 2 5 2 . . . . 17 5 2 2 6 Meltdown 2 | . . . . . . . . . . . . 1 1 . Destroy 2 | . . . . . . . . . . . . . . 2 Corrupt 1 | 1 . . . . . . . . . . . . . . Melee Attacks . | . . . . . . . . . . . . . . . Impact . | . . . . . . . . . . . . . . . Slashing . | . . . . . . . . . . . . . . . Piercing . | . . . . . . . . . . . . . . . Sneak Attacks . | . . . . . . . . . . . . . . . Combat Hostiles . | . . . . . . . . . . . . . . . Follow-up Attacks . | . . . . . . . . . . . . . . . Damage Inflicted 26270 | 111 1283 2761 765 832 2364 1457 328 . 86 7069 3273 1547 754 3640 Guns 17016 | 111 278 1882 547 646 2364 1457 328 . 86 4071 2080 462 208 2496 Cannons 7532 | . 906 879 . 186 . . . . . 2059 1193 1085 546 678 Explosions 1691 | . 99 . 192 . . . . . . 934 . . . 466 Melee . | . . . . . . . . . . . . . . . Ramming 31 | . . . 26 . . . . . . 5 . . . . Kinetic . | . . . . . . . . . . . . . . . Thermal 24914 | . 1005 2496 547 832 2364 1457 328 . 86 7051 3273 1547 754 3174 Explosive 658 | . . . 192 . . . . . . . . . . 466 Electromagnetic 667 | 111 278 265 . . . . . . . 13 . . . . Impact . | . . . . . . . . . . . . . . . Slashing . | . . . . . . . . . . . . . . . Piercing . | . . . . . . . . . . . . . . . Highest Corruption 43 | . 7 . . . 4 . . . . 4 4 8 24 43 Average Corruption 6 | . 5 . . . 2 . . . . 3 4 4 8 25 Corruption Purged 4 | . . . . . 4 . . . . . . . . . Corruption Blocked . | . . . . . . . . . . . . . . . Effects 213 | . 20 . . . 37 . . . . 29 40 14 18 55 Message Errors 47 | . 4 . . . 7 . . . . 11 6 4 3 12 Matter Fused 46 | . 5 . . . 11 . . . . 6 11 . 2 11 Heat Flow Errors 24 | . 1 . . . 8 . . . . 2 3 1 3 6 Energy Discharges 25 | . 4 . . . 3 . . . . 3 4 1 4 6 Parts Rejected 4 | . . . . . . . . . . . 2 . . 2 Parts Fused 3 | . . . . . . . . . . . . . 1 2 Data Loss (minor) 28 | . 4 . . . 3 . . . . 4 7 4 3 3 Data Loss (major) 12 | . 2 . . . 3 . . . . . 2 2 . 3 Misfires 6 | . . . . . 1 . . . . 2 1 1 1 . Alerts 6 | . . . . . 1 . . . . 1 2 1 . 1 Weapon Failures 12 | . . . . . . . . . . . 2 . 1 9 Overload Shots 46 | . . . . . . . . . . 41 5 . . . Effects 9 | . . . . . . . . . . 8 1 . . . Energy Bleed 2 | . . . . . . . . . . 2 . . . . Heat Surge 6 | . . . . . . . . . . 5 1 . . . Short Circuit 1 | . . . . . . . . . . 1 . . . . Overflow Damage 289 | . 5 29 . . . . . . . 169 51 24 . 11 Projectiles 127 | . 5 . . . . . . . . 47 51 24 . . Explosions 162 | . . 29 . . . . . . . 122 . . . 11 Melee . | . . . . . . . . . . . . . . . Knockbacks . | . . . . . . . . . . . . . . . Impact . | . . . . . . . . . . . . . . . Kinetic . | . . . . . . . . . . . . . . . Secondary . | . . . . . . . . . . . . . . . Self-Inflicted Damage 241 | . . 81 . . . . . . . . . . . 160 Shots 5 | . . 1 . . . . . . . . . . . 4 Rammed 6 | . . . 5 . . . . . . 1 . . . . Targets Rammed 7 | . . . 5 . . . . . . 2 . . . . Kicked . | . . . . . . . . . . . . . . . Crushed 1 | . . . . . . . . . . 1 . . . . Highest Temperature 493 | 72 200 181 48 326 272 308 58 . 54 361 333 316 297 493 Average Temperature 90 | 29 55 54 14 90 86 65 23 . 27 88 90 142 89 142 Received Heat Transfer 2641 | . 162 582 90 54 50 69 . . . 1200 170 38 45 181 Effects 19 | . . . . 2 . . . . . 5 2 3 . 7 Shutdowns 4 | . . . . . . . . . . 1 . 1 . 2 Energy Bleed 4 | . . . . 2 . . . . . 1 . 1 . . Interference 7 | . . . . . . . . . . 3 2 1 . 1 Damage (minor) 4 | . . . . . . . . . . . . . . 4 Siege Activations 11 | . . . . . . . . . . . . . 3 8 Total Turns 253 | . . . . . . . . . . . . . 59 194 Longest Duration 72 | . . . . . . . . . . . . . 24 72 Martial Activations . | . . . . . . . . . . . . . . . Shielding Activations . | . . . . . . . . . . . . . . . Robots Disrupted . | . . . . . . . . . . . . . . . Combat Hostiles . | . . . . . . . . . . . . . . . Robots Corrupted 1 | . 1 . . . . . . . . . . . . . Combat Hostiles 1 | . 1 . . . . . . . . . . . . . Parts Fried 8 | 1 2 3 . . . . . . . . . . . 2 Impact Corruptions . | . . . . . . . . . . . . . . . Robots Melted 22 | . . . 1 . 3 1 . . . 7 4 1 1 4 Combat Hostiles 18 | . . . 1 . 3 1 . . . 6 3 1 1 2 Parts Melted 148 | . . 27 4 6 18 6 6 . 1 38 17 4 1 20 Heat Transferred 50265 | . 1728 5624 1332 2072 5147 3325 711 . 162 13601 6580 2569 1331 6083 Parts Sabotaged . | . . . . . . . . . . . . . . . Parts Stolen . | . . . . . . . . . . . . . . . Parts Stripped . | . . . . . . . . . . . . . . . Power Chain Reactions 1 | . 1 . . . . . . . . . . . . . Alert | -11 -10 -9 -9 -8 -7 -7 -7 -7 -6 -6 -6 -6 -6 -6 ------- Run | Yrd Mat Mat Min Mat Fac Low Low Dat Pro Fac Ext Cet Arc Hub Maximum Alert Level 3 | . . 1 . . . . . . . 3 3 2 1 1 Low Security (%) 68 | 100 100 73 100 100 100 . . . . 55 . . 12 69 Level 1 12 | . . 26 . . . . . . . 8 32 . 87 30 Level 2 9 | . . . . . . . . . . 2 38 100 . . Level 3 8 | . . . . . . . . . . 34 28 . . . Level 4 . | . . . . . . . . . . . . . . . Level 5 . | . . . . . . . . . . . . . . . High Security . | . . . . . . . . . . . . . . . Max Security . | . . . . . . . . . . . . . . . Peak Influence 880 | 10 70 389 169 138 139 . . . . 880 879 697 319 275 Initial 487 | . . 3 144 . . . . . . . 424 487 263 63 Average 193 | 2 26 129 51 44 56 . . . . 325 524 566 260 150 Influence Increases 7587 | 25 366 1029 305 439 587 535 171 . 34 1404 1114 681 126 771 Destroy 0b10 Robot/C 4640 | . 240 640 180 240 380 480 120 . 20 800 640 340 80 480 Destroy 0b10 Robot/NC 310 | 25 35 55 10 15 30 . . . . 60 55 10 . 15 Destroy Leader 970 | . 48 184 30 84 134 40 30 . 10 168 76 30 . 136 Allied During Kill 603 | . . . 18 12 . . 21 . 4 8 281 259 . . Successful Hack 198 | . 23 19 . 42 43 . . . . 28 14 8 . 21 Disable Machine 555 | . 15 60 60 15 . . . . . 240 30 15 45 75 Destroy Structure 146 | . 5 11 7 1 . . . . . 40 18 19 1 44 Partial Spotted 30 | . . 30 . . . . . . . . . . . . Lose Combat Pursuer 135 | . . 30 . 30 . 15 . . . 60 . . . . Influence Decreases 7373 | 25 357 667 676 439 459 577 257 . 34 536 1112 893 601 740 Entered New Map 1640 | . . 6 227 . . 48 17 . . . 444 383 395 120 Time Decay 4877 | 25 357 516 439 399 449 499 230 . 34 395 568 350 206 410 Lost Part 487 | . . 77 10 . 10 30 10 . . 140 . . . 210 Lost Ally 301 | . . . . 40 . . . . . 1 100 160 . . Purge Threat 68 | . . 68 . . . . . . . . . . . . Squads Dispatched 45 | . 1 3 . . 13 . . . . 15 1 3 . 9 Investigation 12 | . 1 2 . . 2 . . . . 4 . 3 . . Extermination 13 | . . . . . 6 . . . . 5 . . . 2 Reinforcement 11 | . . 1 . . 2 . . . . 1 1 . . 6 Assault 1 | . . . . . . . . . . 1 . . . . Garrison 8 | . . . . . 3 . . . . 4 . . . 1 Intercept . | . . . . . . . . . . . . . . . Searches Triggered . | . . . . . . . . . . . . . . . Data Miner Redirects 2 | . . . . . . . . . . 1 . 1 . . Construction Impeded 1 | . . . . . . . . . . . . . . 1 Haulers Reinforced 1 | . . . . . . . . . . 1 . . . . Active Scanning Responses . | . . . . . . . . . . . . . . . Cargo Convoy Interrupts . | . . . . . . . . . . . . . . . Stealth | -11 -10 -9 -9 -8 -7 -7 -7 -7 -6 -6 -6 -6 -6 -6 --------- Run | Yrd Mat Mat Min Mat Fac Low Low Dat Pro Fac Ext Cet Arc Hub Distress Signals 16 | . . 4 . 2 3 . . . . 2 1 2 . 2 Communications Jammed . | . . . . . . . . . . . . . . . Distress Signals . | . . . . . . . . . . . . . . . Times Spotted 297 | . 16 47 9 12 27 25 5 . 1 56 35 20 6 38 Peak Tracking Total 8 | . 3 8 4 4 5 6 3 . 1 7 5 5 1 8 Tactical Retreats 8 | . . 2 . 2 . 1 . . . 3 . . . . Traps | -11 -10 -9 -9 -8 -7 -7 -7 -7 -6 -6 -6 -6 -6 -6 ------- Run | Yrd Mat Mat Min Mat Fac Low Low Dat Pro Fac Ext Cet Arc Hub Traps Triggered 11 | . 6 1 . . 2 . . . . 2 . . . . Indirectly . | . . . . . . . . . . . . . . . Trap Hack Attempts . | . . . . . . . . . . . . . . . Triggered . | . . . . . . . . . . . . . . . Disarmed . | . . . . . . . . . . . . . . . Reprogrammed . | . . . . . . . . . . . . . . . Reused . | . . . . . . . . . . . . . . . Traps Extracted . | . . . . . . . . . . . . . . . Installed . | . . . . . . . . . . . . . . . Triggered . | . . . . . . . . . . . . . . . Machines | -11 -10 -9 -9 -8 -7 -7 -7 -7 -6 -6 -6 -6 -6 -6 ---------- Run | Yrd Mat Mat Min Mat Fac Low Low Dat Pro Fac Ext Cet Arc Hub Machines Disabled 42 | . 1 4 4 1 . . . . . 16 6 2 3 5 Max in Single Turn 13 | . 1 2 4 1 . . . . . 13 1 1 1 1 Network Hub 1 | . . . . . . . . . . . . . . 1 Machines Repaired . | . . . . . . . . . . . . . . . Machines Dismantled . | . . . . . . . . . . . . . . . Machines Sabotaged . | . . . . . . . . . . . . . . . Overloaded Fab Kills . | . . . . . . . . . . . . . . . Hacking | -11 -10 -9 -9 -8 -7 -7 -7 -7 -6 -6 -6 -6 -6 -6 --------- Run | Yrd Mat Mat Min Mat Fac Low Low Dat Pro Fac Ext Cet Arc Hub Machines Accessed 60 | . 7 11 . 6 10 1 . 4 . 10 5 3 1 2 Terminals 37 | . 6 8 . 4 8 . . . . 3 3 3 . 2 Fabricators 6 | . . . . . 1 . . . . 5 . . . . Repair Stations 5 | . . 2 . 1 . . . . . 2 . . . . Recycling Units 3 | . 1 . . . . . . . . . 2 . . . Scanalyzers 2 | . . 1 . 1 . . . . . . . . . . Garrison Access 1 | . . . . . 1 . . . . . . . . . Total Hacks 203 | . 21 47 . 25 16 1 . 31 . 32 9 7 10 4 Successful 124 | . 14 26 . 17 3 1 . 31 . 17 1 2 10 2 Failed 79 | . 7 21 . 8 13 . . . . 15 8 5 . 2 Catastrophic 19 | . . 4 . 1 6 . . . . 3 2 2 . 1 Database Lockouts . | . . . . . . . . . . . . . . . Manual 40 | . 12 21 . 1 1 . . . . 1 1 3 . . Terminals 97 | . 20 28 . 11 12 . . . . 9 6 7 . 4 Fabricators 15 | . . . . . 2 . . . . 13 . . . . Repair Stations 29 | . . 12 . 7 . . . . . 10 . . . . Recycling Units 4 | . 1 . . . . . . . . . 3 . . . Scanalyzers 14 | . . 7 . 7 . . . . . . . . . . Garrison Access 2 | . . . . . 2 . . . . . . . . . Terminal Hacks 72 | . 8 7 . 5 2 1 . 31 . 3 1 2 10 2 Record 24 | . . . . . . . . 11 . 1 . 2 10 . Part Schematic 14 | . . 1 . . 1 . . 11 . 1 . . . . Robot Schematic 6 | . . . . . . . . 6 . . . . . . Prototype ID Bank 7 | . 1 1 . 2 . . . 3 . . . . . . Open Door 1 | . . . . . . 1 . . . . . . . . Fabricator Index 1 | . . . . . . . . . . 1 . . . . Unreport Threat 1 | . . 1 . . . . . . . . . . . . Locate Traps 1 | . 1 . . . . . . . . . . . . . Dispatch Records 1 | . 1 . . . . . . . . . . . . . Transport Status 1 | . 1 . . . . . . . . . . . . . Hauler Manifests 3 | . 1 1 . 1 . . . . . . . . . . Registered Components 2 | . 1 1 . . . . . . . . . . . . Registered Prototypes 1 | . . . . . 1 . . . . . . . . . Zone Layout 9 | . 2 2 . 2 . . . . . . 1 . . 2 Fabricator Hacks 9 | . . . . . 1 . . . . 8 . . . . Network Status 1 | . . . . . 1 . . . . . . . . . Load Schematic 4 | . . . . . . . . . . 4 . . . . Build 4 | . . . . . . . . . . 4 . . . . Repair Station Hacks 21 | . . 9 . 6 . . . . . 6 . . . . Scan Component 11 | . . 5 . 3 . . . . . 3 . . . . Repair 10 | . . 4 . 3 . . . . . 3 . . . . Recycling Unit Hacks 1 | . 1 . . . . . . . . . . . . . Retrieve Components 1 | . 1 . . . . . . . . . . . . . Scanalyzer 12 | . . 6 . 6 . . . . . . . . . . Insert Component 6 | . . 3 . 3 . . . . . . . . . . Analyze 6 | . . 3 . 3 . . . . . . . . . . Garrison Access Hacks . | . . . . . . . . . . . . . . . Unauthorized Hacks 9 | . 5 4 . . . . . . . . . . . . Terminals 9 | . 5 4 . . . . . . . . . . . . Botnet 7 | . 4 3 . . . . . . . . . . . . Operators 2 | . 1 1 . . . . . . . . . . . . Fabricators . | . . . . . . . . . . . . . . . Repair Stations . | . . . . . . . . . . . . . . . Recycling Units . | . . . . . . . . . . . . . . . Scanalyzers . | . . . . . . . . . . . . . . . Garrison Access . | . . . . . . . . . . . . . . . Data Cores Recovered 1 | . 1 . . . . . . . . . . . . . Used . | . . . . . . . . . . . . . . . Hacking Detections 51 | . 5 11 . 5 10 . . . . 9 5 4 . 2 Full Trace Events 9 | . . 1 . . 1 . . . . 4 . 3 . . Feedback Events . | . . . . . . . . . . . . . . . Feedback Blocked . | . . . . . . . . . . . . . . . Robot Schematics Acquired 6 | . . . . . . . . 6 . . . . . . Robots Built . | . . . . . . . . . . . . . . . Authchips . | . . . . . . . . . . . . . . . Time . | . . . . . . . . . . . . . . . Total Robot Build Rating . | . . . . . . . . . . . . . . . Part Schematics Acquired 20 | . . 4 . 3 1 . . 11 . 1 . . . . Parts Built 8 | . . . . . . . . . . 8 . . . . Authchips . | . . . . . . . . . . . . . . . Time 402 | . . . . . . . . . . 402 . . . . Total Part Build Rating 44 | . . . . . . . . . . 44 . . . . Parts Repaired 10 | . . 4 . 3 . . . . . 3 . . . . Time 375 | . . 128 . 115 . . . . . 132 . . . . Parts Recycled . | . . . . . . . . . . . . . . . Recycled Matter . | . . . . . . . . . . . . . . . Retrieved Matter . | . . . . . . . . . . . . . . . Retrieved Components 10 | . 10 . . . . . . . . . . . . . Parts Scanalyzed 6 | . . 3 . 3 . . . . . . . . . . Part Schematics Acquired 6 | . . 3 . 3 . . . . . . . . . . Parts Damaged . | . . . . . . . . . . . . . . . Bothacking | -11 -10 -9 -9 -8 -7 -7 -7 -7 -6 -6 -6 -6 -6 -6 ------------ Run | Yrd Mat Mat Min Mat Fac Low Low Dat Pro Fac Ext Cet Arc Hub Used RIF Installer . | . . . . . . . . . . . . . . . Robots Hacked 3 | . . . . . 3 . . . . . . . . . Non-combat 3 | . . . . . 3 . . . . . . . . . Combat . | . . . . . . . . . . . . . . . Robot Hacks Applied 6 | . . . . . 6 . . . . . . . . . no_distress 2 | . . . . . 2 . . . . . . . . . find_chute 4 | . . . . . 4 . . . . . . . . . Relay Couplers Released . | . . . . . . . . . . . . . . . Fabnet Peak Effective % . | . . . . . . . . . . . . . . . Robots Rewired 8 | . . . . . . 2 . . . . 6 . . . Allies Hacked 1 | . . . . . . . . . . 1 . . . . Hacks Repelled . | . . . . . . . . . . . . . . . Allies | -11 -10 -9 -9 -8 -7 -7 -7 -7 -6 -6 -6 -6 -6 -6 -------- Run | Yrd Mat Mat Min Mat Fac Low Low Dat Pro Fac Ext Cet Arc Hub Total Allies 21 | . . . 2 . . 2 . . . . 17 . . . Largest Group 12 | . . . 2 2 . 2 2 2 2 2 12 12 1 . Highest-Rated Group 437 | . . . 48 48 . 36 36 36 36 36 437 437 152 . Highest-Rated Ally 159 | . . . 31 31 . 20 20 20 20 20 159 152 152 . Total Orders 3 | . . . . . . . . . . . . 3 . . STAY 1 | . . . . . . . . . . . . 1 . . FOLLOW 1 | . . . . . . . . . . . . 1 . . GUARD 1 | . . . . . . . . . . . . 1 . . Ally Attacks 254 | . . . 6 3 . . 5 . 1 10 162 67 . . Total Damage 5445 | . . . 63 22 . . 47 . 18 93 3346 1856 . . Kills 35 | . . . . 1 . . 1 . . 1 22 10 . . Allies Corrupted . | . . . . . . . . . . . . . . . Allies Melted . | . . . . . . . . . . . . . . . Intel | -11 -10 -9 -9 -8 -7 -7 -7 -7 -6 -6 -6 -6 -6 -6 ------- Run | Yrd Mat Mat Min Mat Fac Low Low Dat Pro Fac Ext Cet Arc Hub Active Infowar (turns) 12938 | 24 411 1900 7 . 2518 1512 786 127 316 2102 1695 567 342 631 Sensors 9589 | . . . . . 2518 1512 786 127 316 1097 1695 567 342 629 Terrain 4750 | . . . . . . . . . 219 2102 1691 508 . 230 Seismic 2342 | 24 411 1900 7 . . . . . . . . . . . Robot Analysis Total . | . . . . . . . . . . . . . . . Derelict Logs Recovered 5 | . . . 1 . . 2 . . 2 . . . . . Drone Launches . | . . . . . . . . . . . . . . . Drone Recoveries . | . . . . . . . . . . . . . . . Exploration | -11 -10 -9 -9 -8 -7 -7 -7 -7 -6 -6 -6 -6 -6 -6 ------------- Run | Yrd Mat Mat Min Mat Fac Low Low Dat Pro Fac Ext Cet Arc Hub Turns Passed 18848 | 85 1049 2366 1662 1837 2518 1512 786 127 316 2680 1707 783 432 988 Spaces Moved 9194 | 49 880 1068 939 625 1319 772 483 85 193 1100 745 401 192 343 Core 5 | 5 . . . . . . . . . . . . . . Treads 8123 | . . 1020 939 625 1319 772 483 85 193 1006 745 401 192 343 Legs 95 | . . 1 . . . . . . . 94 . . . . Wheels 971 | 44 880 47 . . . . . . . . . . . . Hover . | . . . . . . . . . . . . . . . Flight . | . . . . . . . . . . . . . . . Fastest Speed 50 | 50 80 95 160 145 145 150 150 150 150 120 162 160 160 160 Average Speed 150 | 87 91 157 160 157 145 170 150 150 150 157 162 160 160 160 Slowest Speed 260 | 200 95 260 160 160 153 232 150 150 150 260 162 162 160 160 Overloaded Moves . | . . . . . . . . . . . . . . . Propulsion Burnouts . | . . . . . . . . . . . . . . . Robots Hopped . | . . . . . . . . . . . . . . . Potential Cave-ins . | . . . . . . . . . . . . . . . Cave-ins Triggered . | . . . . . . . . . . . . . . . Exploration Rate (%) 62 | 3 97 83 101 45 26 77 63 68 40 29 83 78 97 40 Regions Visited 14 Branch Regions 9 Pre-discovered Areas 3 | . . . 2 . . . . 1 . . . . . . Known Exits Taken 9 | . . . . . 1 1 1 1 1 1 1 1 1 . Unknown Exits Taken 5 | 1 1 1 1 1 . . . . . . . . . . Scrap Searched 12 | . . . 1 . . 4 6 . 1 . . . . . Spaces Dug 20 | . . 4 . . . . . . . 15 . . 1 . Terrain Destroyed 113 | . 3 9 13 . . . . . . 36 2 7 1 42 Melee . | . . . . . . . . . . . . . . . Projectile 45 | . . 4 . . . . . . . 22 2 7 1 9 AOE 68 | . 3 5 13 . . . . . . 14 . . . 33 Terrain Rammed . | . . . . . . . . . . . . . . . Walls Destroyed . | . . . . . . . . . . . . . . . Machines Disabled . | . . . . . . . . . . . . . . . Actions | -11 -10 -9 -9 -8 -7 -7 -7 -7 -6 -6 -6 -6 -6 -6 --------- Run | Yrd Mat Mat Min Mat Fac Low Low Dat Pro Fac Ext Cet Arc Hub Total 12902 | 74 1018 1545 1041 1435 1799 884 526 85 217 1747 1120 490 294 627 Wait 2467 | . 31 256 57 743 373 47 25 1 22 399 228 36 79 170 Move 9180 | 48 879 1067 938 624 1318 771 482 84 192 1099 744 400 191 343 Hop . | . . . . . . . . . . . . . . . Pick Up 129 | 9 20 28 1 10 11 1 2 . . 22 7 6 3 9 Fast Attach 52 | 7 . 9 1 6 4 2 2 . 1 12 4 2 1 1 Attach 50 | . . 11 1 2 3 2 1 . . 12 . . 3 15 Detach 11 | . . 2 1 1 . 1 . . . 3 1 . 1 1 Swap 173 | . 13 31 9 11 22 3 3 . . 32 23 8 1 17 Drop 154 | 2 19 30 2 14 19 1 4 . 1 21 21 13 4 3 Fire 619 | 8 56 111 26 24 48 31 7 . 1 145 58 25 11 68 Melee . | . . . . . . . . . . . . . . . Ram . | . . . . . . . . . . . . . . . Kick . | . . . . . . . . . . . . . . . Crush 7 | . . . 5 . . . . . . 2 . . . . Escape Stasis 1 | . . . . . 1 . . . . . . . . . Rewire 59 | . . . . . . 25 . . . . 34 . . . Trap . | . . . . . . . . . . . . . . . Miscellaneous . | . . . . . . . . . . . . . . . Route ------- -11/Scrapyard -10/Materials (discovered 4 exits: *Mat x3 / [*Min]) -9/Materials (discovered 4 exits: *Mat x3 / [*Min]) -9/Mines (discovered 2 exits: *Mat x2) -8/Materials (discovered 3 exits: *Fac / [*Sto x2]) -7/Factory -7/Lower Caves -7/Lower Caves (discovered 2 exits: *Fac / *Dat) -7/Data Miner -6/Proximity Caves -6/Factory (discovered 2 exits: *Low / *Ext) -6/Extension (discovered 3 exits: *Fac x2 / *Cet) -6/Cetus (discovered 3 exits: *Fac x2 / *Arc) -6/Archives (discovered 3 exits: *Fac / *Hub x2) -6/Hub_04(d) (discovered 2 exits: *Fac x2) History --------- Turn | Location | Event 24 | -11/Scrapyard | Discovered new exit (range 15) 86 | -11/Scrapyard | Entered Materials 217 | -10/Materials | Discovered new exit (range 9) 309 | -10/Materials | Discovered new exit (range 15) 311 | -10/Materials | Build established: Mutant 437 | -10/Materials | Discovered new exit (range 10) 530 | -10/Materials | Discovered new exit (range 14) 1135 | -10/Materials | Entered another Materials area 1135 | -9/Materials | Evolved 2 slots: Utility x2 1291 | -9/Materials | Lost 6 parts (1p2n1u2w) 1719 | -9/Materials | Discovered new exit (range 11) 2131 | -9/Materials | Discovered new exit (range 17) 2558 | -9/Materials | Destroyed 7 combat bots 2713 | -9/Materials | Repaired Imp. Treads 2748 | -9/Materials | Repaired Hrd. Light Armor Plating 2781 | -9/Materials | Repaired Imp. Treads 2825 | -9/Materials | Core integrity fell below 50% 2865 | -9/Materials | Discovered new exit (range 16) 3374 | -9/Materials | Repaired Imp. Treads 3387 | -9/Materials | Discovered new exit (range 11) 3501 | -9/Materials | Entered Mines 3967 | -9/Mines | Discovered new exit (range 8) 3968 | -9/Mines | Learned location of Storage (-8) 4046 | -9/Mines | Discovered new exit (range 6) 5163 | -9/Mines | Entered Materials 5163 | -8/Materials | Accompanied by 2 allies 5163 | -8/Materials | Evolved 2 slots: Propulsion x1, Weapon x1 5168 | -8/Materials | Led the pair of lost Derelicts to an unsafe place 5196 | -8/Materials | Discovered new exit (range 12) 5288 | -8/Materials | Repaired Imp. Treads 5322 | -8/Materials | Repaired Imp. Treads 5374 | -8/Materials | Repaired Imp. Medium Laser 5561 | -8/Materials | Discovered new exit (range 16) 5684 | -8/Materials | Build established: Gunner 5708 | -8/Materials | Discovered new exit (range 15) 7000 | -8/Materials | Entered Factory 7000 | -7/Factory | Evolved 2 slots: Utility x2 7301 | -7/Factory | Build established: Skirmisher 8552 | -7/Factory | Garrison activated, responded to threat 8938 | -7/Factory | Discovered new exit (range 11) 8952 | -7/Factory | Identified exit to Lower Caves 9518 | -7/Factory | Entered Lower Caves 9530 | -7/Lower Caves | Learned Factory stockpile data 9535 | -7/Lower Caves | Learned location of 1 exit from Proximity Caves 9842 | -7/Lower Caves | Attracted the attention of an 0b10 checkpoint 10321 | -7/Lower Caves | Discovered new exit (range 5) 10327 | -7/Lower Caves | Identified exit to Lower Caves 10407 | -7/Lower Caves | Destroyed 7 combat bots 10626 | -7/Lower Caves | Attracted the attention of an 0b10 outpost 11030 | -7/Lower Caves | Entered another Lower Caves area 11030 | -7/Lower Caves | Accompanied by 2 allies 11070 | -7/Lower Caves | Discovered new exit (range 8) 11077 | -7/Lower Caves | Identified exit to Factory 11254 | -7/Lower Caves | Encountered a Warlord checkpoint 11725 | -7/Lower Caves | Build established: Derelict-Skirmisher 11798 | -7/Lower Caves | Discovered new exit (range 7) 11805 | -7/Lower Caves | Identified exit to Data Miner 11816 | -7/Lower Caves | Entered Data Miner 11816 | -7/Data Miner | Accompanied by 2 allies 11816 | -7/Data Miner | Discovered new exit (range 6) 11837 | -7/Data Miner | Identified exit to Proximity Caves 11857 | -7/Data Miner | Met Data Miner 11896 | -7/Data Miner | Learned location of Section 7 (-3) 11896 | -7/Data Miner | Acquired the access code to Warlord's prototype stash 11909 | -7/Data Miner | Received God Mode back door access code from Data Miner 11943 | -7/Data Miner | Entered Proximity Caves 11943 | -6/Proximity Caves | Accompanied by 2 allies 12174 | -6/Proximity Caves | Learned 4 Factory zone layouts 12242 | -6/Proximity Caves | Learned Factory stockpile data 12259 | -6/Proximity Caves | Entered Factory 12259 | -6/Factory | Accompanied by 2 allies 12259 | -6/Factory | Evolved 2 slots: Propulsion x1, Utility x1 12483 | -6/Factory | Discovered new exit (range 16) 12563 | -6/Factory | Build established: Skirmisher 12565 | -6/Factory | Identified exit to Lower Caves 12616 | -6/Factory | Fabricated Dispersion Rifle (x2) 13015 | -6/Factory | Fabricated Adv. Signal Interpreter? 13494 | -6/Factory | Fabricated Arm. Treads? 13597 | -6/Factory | Lost 7 parts (1p3n1u2w) 13919 | -6/Factory | Garrison activated, responded to threat 13986 | -6/Factory | Fabricated Adv. Thermal Generator? 14244 | -6/Factory | Repaired Arm. Treads 14303 | -6/Factory | Repaired Adv. Terrain Scanner 14381 | -6/Factory | Repaired Imp. Cooling System 14614 | -6/Factory | Build established: Machinist-Skirmisher 14686 | -6/Factory | Garrison activated, responded to threat 14709 | -6/Factory | First assault squad dispatched 14726 | -6/Factory | Incoming assault squad redirected 14839 | -6/Factory | Discovered new exit (range 16) 14938 | -6/Factory | Identified exit to Extension 14939 | -6/Factory | Entered Extension 14943 | -6/Extension | Build established: Skirmisher 15213 | -6/Extension | Rescued A7 15519 | -6/Extension | Rescued a captive Derelict 15595 | -6/Extension | Rescued a captive Derelict 15596 | -6/Extension | Rescued a captive Derelict 15626 | -6/Extension | Rescued a captive Derelict 15627 | -6/Extension | Rescued a captive Derelict 15864 | -6/Extension | Disrupted transfer network 15958 | -6/Extension | Spotted B-75 Beast 15973 | -6/Extension | Destroyed B-75 Beast 15983 | -6/Extension | Discovered new exit (range 19) 15987 | -6/Extension | Spotted B-75 Beast 16004 | -6/Extension | Destroyed B-75 Beast 16176 | -6/Extension | Lost 5 allies 16207 | -6/Extension | Rescued a captive Derelict 16207 | -6/Extension | Rescued a captive Derelict 16490 | -6/Extension | Rescued a captive Derelict 16508 | -6/Extension | Rescued a captive Derelict 16520 | -6/Extension | Rescued a captive Derelict 16566 | -6/Extension | Discovered new exit (range 20) 16579 | -6/Extension | Discovered new exit (range 9) 16636 | -6/Extension | Identified exit to Factory 16641 | -6/Extension | Identified exit to Cetus 16646 | -6/Extension | Entered Cetus 16646 | -6/Cetus | Accompanied by 12 allies (A7) 16651 | -6/Cetus | Build established: Commander-Skirmisher 16651 | -6/Cetus | Acquired a Cetus Manufacturing Module code from A7 16671 | -6/Cetus | Spotted Cetus Guard 16671 | -6/Cetus | Spotted Cetus Guard 16674 | -6/Cetus | Core integrity fell below 50% 16674 | -6/Cetus | Destroyed Cetus Guard 16678 | -6/Cetus | Allies destroyed Cetus Guard 16678 | -6/Cetus | Spotted Cetus Guard 16679 | -6/Cetus | Spotted Cetus Guard 16686 | -6/Cetus | Allies destroyed Cetus Guard 16694 | -6/Cetus | Allies destroyed Cetus Guard 16820 | -6/Cetus | Discovered exit to Factory (range 18) 16976 | -6/Cetus | Started Cetus Manufacturing Module 16997 | -6/Cetus | Cetus Manufacturing Module disabled 17020 | -6/Cetus | Build established: Scavenger-Skirmisher 17105 | -6/Cetus | Incoming investigation squad redirected 17159 | -6/Cetus | Discovered new exit (range 16) 17193 | -6/Cetus | Spotted Cetus Guard 17193 | -6/Cetus | Spotted Cetus Guard 17201 | -6/Cetus | Spotted Cetus Guard 17205 | -6/Cetus | Allies destroyed Cetus Guard 17205 | -6/Cetus | Spotted Cetus Guard 17217 | -6/Cetus | Allies destroyed Cetus Guard 17224 | -6/Cetus | Destroyed Cetus Guard 17228 | -6/Cetus | Destroyed Cetus Guard 17242 | -6/Cetus | Discovered exit to Factory (range 15) 17252 | -6/Cetus | Met Revision 17 17258 | -6/Cetus | Lost 5 allies 17336 | -6/Cetus | Identified exit to Archives 17396 | -6/Cetus | Security sweep announced 17429 | -6/Cetus | Entered Archives 17429 | -6/Archives | Accompanied by 1 ally (A7) 17506 | -6/Archives | Build established: Scavenger-Tank 17597 | -6/Archives | Unable to access archive contents 17600 | -6/Archives | Discovered new exit (range 16) 17613 | -6/Archives | Unable to access archive contents 17629 | -6/Archives | Unable to access archive contents 17632 | -6/Archives | Discovered exit to Factory (range 16) 17645 | -6/Archives | Unable to access archive contents 17712 | -6/Archives | Discovered new exit (range 15) 17806 | -6/Archives | Build established: Scavenger-Skirmisher 17837 | -6/Archives | Identified exit to Hub_04(d) 17845 | -6/Archives | System corruption reached 10% 17861 | -6/Archives | Entered Hub_04(d) 17861 | -6/Hub_04(d) | Discovered exit to Factory (range 10) 18100 | -6/Hub_04(d) | Discovered exit to Factory (range 10) 18465 | -6/Hub_04(d) | Spotted B-75 Beast 18476 | -6/Hub_04(d) | Destroyed B-75 Beast 18680 | -6/Hub_04(d) | Network Hub disabled 18728 | -6/Hub_04(d) | Lost 7 parts (1p1n5u) 18728 | -6/Hub_04(d) | Garrison activated, responded to threat 18782 | -6/Hub_04(d) | Spotted Lightning 18782 | -6/Hub_04(d) | Spotted Lightning 18783 | -6/Hub_04(d) | Found Prototype Device 18785 | -6/Hub_04(d) | System corruption reached 30% 18790 | -6/Hub_04(d) | Spotted Lightning 18829 | -6/Hub_04(d) | Core integrity fell below 20% 18849 | -6/Hub_04(d) | Destroyed by Lightning with EMDS Last Messages --------------- 18835_ Penetrated by EMDS Slug. 18835_ Control Node disabled. 18835_ Penetrated by EMDS Slug. 18835_ Angular Momentum Engine destroyed. 18836_ Penetrated by EMDS Slug. 18837_ Penetrated by Slug. 18842_ %LEH|9JX%TFUJ/MU%T2UU6WP# VZ2V7 18842_ EMDS Slug penetrates Wall. 18843_ Penetrated by EMDS Slug. 18843_ EMDS Slug penetrates Wall. 18843_ Adv. Thermal Generator destroyed. 18843_ Hvy. Plasma Cannon destroyed. 18844_ Penetrated by Slug. 18847_ Slug penetrates Terminal. 18847_ Penetrated by Slug. 18849_ Terminal disabled. 18849_ Lrn. Missile Launcher destroyed. 18849_ Destroyed Lrn. Missile Launcher. 18849_ U-05 Engineer builds a Wall. 18849_ Penetrated by EMDS Slug. Map ----- +----------------------------------------------------+ | # ##? !## " " ###?###??????? | | ?# ### ?"? ## " " ###?###??????? | | ?? # ### # """"""""""""" ##?###???????? | | # ######+### " " #####?#??????? | | ??# ##### ##"!%![% " #####?#??????? | | #?## !=%= " #??###???#???? | | ##?#######+## ##"[=[ % " ##?#??#??????? | | ?#? ??? ? ####?#" "" " ########??#??? | | +? ?###?# " "" " #?# ? ? ????? | | ??? """ ?""?#?####" "" " ### ?? ?"? ??? | | ?#? ? ##?## " "" " ###? ????? ?? | | ????#############""[ ; " ### ? ???"???? | | ????# #;% ; " ### ????"??"?? | | ????# ; ;[;;;;; ###?? "??????? | | ????# # !%= ### ???????? | | ????# !; ###?? ? ??????? | | ????# ! ; ###??#? ?????????? | | ????# ; ###?####??????? ??? | | ????# =%* [] ;###??###?##?????#??? | | ????# " " " h ;########?#?#??? ???? | | ??????? " " " i h ?##????? ????? | | ??????? " " ! # # "" ###?#?????#??? | | ????? + hw ! "" ##??? ? ????? | | ????# ##### "" #????????????? | | ????################## " ##???????????? | | ???????????? ???? ? # @ ! ##???????????? | | ????????????"?"??"? # !! " ##???????????? | | ??????????????? ??? # g ! " #?? ????????? | | ??????????????"??????# " ##? ?????????? | | ????????????????? ?# = " #????????????? | | ?????????????????????# g %=% #????????????? | | ?????????????????????#### ;;#+###?#??????????? | | ?????????????????????? u k######????????????????? | | ?????????????????????? ? ???????????????????? | | ????????????????????? " =?????????????????????? | | ????????????????????? ? %?????????????????????? | | ?????????????????????# ? ##????????????????????? | | ?????????????????????##? ##?????????????????????? | | ???????????????????????? ???????????????????????? | | ????????????????????????? ???????????????????????? | | ????????????????????????? ???????????????????????? | | ?????????????????????????????????????????????????? | | ?????????????????????????????????????????????????? | | ?????????????????????????????????????????????????? | | ?????????????????????????????????????????????????? | | ?????????????????????????????????????????????????? | | ?????????????????????????????????????????????????? | | ?????????????????????????????????????????????????? | | #????????????????????????????????????????????????? | | ?????????????????????????????????????????????????? | +----------------------------------------------------+ Best States ------------- Heat Dissipation 91 Energy Generation 25 Energy Capacity 350 Matter Stores 300 Matter Capacity 300 Sight Range 16 Robot Scan Range 15 Terrain Scan Range 20 Terrain Scan Density 210 Armor Coverage 900 Resistance: TH 20 Evasion (%) 55 Targeting Accuracy 8 Recoil Reduction 4 Item Schematics ----------------- Mni. Grenade Launcher | -9/Materials | Hacked Adv. Treads | -9/Materials | Scanalyzed Ion Cannon | -9/Materials | Scanalyzed Hrd. Light Armor Plating | -9/Materials | Scanalyzed Plasma Cannon | -8/Materials | Scanalyzed Imp. Deuterium Engine | -8/Materials | Scanalyzed Arm. Treads | -8/Materials | Scanalyzed Hvy. Plasma Cannon | -7/Factory | Hacked Combat Drone Bay | -7/Data Miner | Free Lgt. Regenerative Plating | -7/Data Miner | Free Cld. Cesium-ion Thruster | -7/Data Miner | Free Gravity Neutralizer | -7/Data Miner | Free Com. Ion Cannon | -7/Data Miner | Free Linear Gravjet | -7/Data Miner | Free Lrn. Tractor Beam | -7/Data Miner | Free Smartbomb Launcher | -7/Data Miner | Free Imp. Kinecellerator | -7/Data Miner | Free Adv. Thermal Generator | -7/Data Miner | Free Lyr. Heavy Armor Plating | -7/Data Miner | Free Adv. Signal Interpreter | -6/Factory | Hacked Robot Schematics ------------------ H-66 Slayer | -7/Data Miner | Free W-25 Informer | -7/Data Miner | Free I-36 Angel | -7/Data Miner | Free L-41 Fighter | -7/Data Miner | Free A-15 Conveyor | -7/Data Miner | Free M-22 Extractor | -7/Data Miner | Free Fabricated ------------ Dispersion Rifle | x2 | -6/Factory | Preloaded Adv. Signal Interpreter | x2 | -6/Factory Arm. Treads | x2 | -6/Factory Adv. Thermal Generator | x2 | -6/Factory Repaired ---------- Imp. Treads | 38% | -9/Materials Hrd. Light Armor Plating | 35% | -9/Materials Imp. Treads | 53% | -9/Materials Imp. Treads | 25% | -9/Materials Imp. Treads | 36% | -8/Materials Imp. Treads | 61% | -8/Materials Imp. Medium Laser | 38% | -8/Materials Arm. Treads | 1% | -6/Factory Adv. Terrain Scanner | 33% | -6/Factory Imp. Cooling System | 48% | -6/Factory Alien Tech Used ----------------- None Achievements -------------- Prison Break Project G-00 Revising The Future Challenges ------------ None Game ------ Seed AssaultSuspensionMesh Manual? 0 Play Time 03:58:32 Cumulative 107.4 hours Start 2025.05.29 @ 15:19:17 End 2025.05.29 @ 21:48:28 Sessions 5 Manual Loads 0 Difficulty Rogue Special Mode None Game No. 84 Rogue 84 Adventurer 0 Explorer 0 Win Type - Total 1 Types 1/0/0/0/0/0/0/0/0/0 Lore% 37 Gallery% 43 Achievement% 40 Wizard Run 0 Options --------- Layout 1 ASCII 0 Keyboard 0 Movement Mouse Keybinds 0 Fullscreen 1 Font 24/Smallcaps Map View 50x35 Zoom Use 0% Tactical HUD 1 Map Filters NONE Filters NONE Steam 1 RUN: 5e6bcca4-f521-44d9-9fdb-e499caea0ec5